fUST/lending_fUST_20240523
["ID","MTS","AMOUNT","RATE_DAILY","PERIOD"]
[327759577,1716436238010,-365.77625708,0.00024998,2]
[327759578,1716436238021,-500.0,0.00024998,2]
[327759579,1716436238031,-500.0,0.00024998,2]
[327759580,1716436238040,-500.0,0.00024998,2]
[327759581,1716436238050,-500.0,0.00024998,2]
[327759582,1716436238060,-500.0,0.00024998,2]
[327759583,1716436238070,-500.0,0.00024998,2]
[327759584,1716436238080,-250.0,0.00024998,2]
[327759585,1716436238089,-249.99999999,0.00024998,2]
[327759586,1716436238099,-1722.15354249,0.00024998,2]
[327759587,1716436238108,-4528.57744544,0.00024998,2]
[327759603,1716436243441,-5984.33725509,0.00024998,2]
[327759604,1716436243451,-9601.42143346,0.00024999,11]
[327759622,1716436246034,-529.90864898,0.00024999,11]
[327759636,1716436687196,400.0,0.00015,2]
[327759643,1716437233164,-154.93802479,0.000165,2]
[327759644,1716437233183,-156.4986066,0.00018999,2]
[327759645,1716437233201,-162.61642107,0.00020157,2]
[327759646,1716437233220,-13924.12565883,0.00020158,2]
[327759647,1716437244123,-2991.01495176,0.00020158,2]
[327759666,1716437432204,-154.93802479,0.00018884,2]
[327759667,1716437432214,-156.4986066,0.00018885,2]
[327759668,1716437432225,-1143.36406491,0.00018888,2]
[327759669,1716437432235,-37818.90819747,0.0002,2]
[327759670,1716437432259,-1972.52461173,0.0002,2]
[327759671,1716437432271,-791.88365063,0.0002,2]
[327759696,1716437438199,-9747.98149648,0.0002,2]
[327759698,1716437438209,-151.0,0.000201,2]
[327759699,1716437438218,-10.04618994,0.00020158,2]
[327759749,1716437441349,-7974.81319947,0.00020158,2]
[327759750,1716437441359,-250.566629,0.00020643,2]
[327759751,1716437441369,-167.0780174,0.00020886,2]
[327759752,1716437441378,-197.079759,0.00021918,2]
[327759753,1716437441388,-2067.06566948,0.00022738,2]
[327759754,1716437441398,-3000.00000001,0.00024,2]
[327759755,1716437441409,-420.755403,0.00024384,2]
[327759756,1716437441419,-197.079759,0.00024482,2]
[327759757,1716437441429,-102.04842427,0.00024851,2]
[327759764,1716437443395,-385.989009,0.00024851,2]
[327759765,1716437443407,-394.22731001,0.00024851,2]
[327759826,1716438264586,2180.50951904,0.0001,2]
[327759831,1716438341151,154.93802479,0.0001,2]
[327759832,1716438344100,156.4986066,9.999e-05,2]
[327759833,1716438361194,154.93802479,0.0001,2]
[327759834,1716438377156,154.93802479,0.0001,2]
[327759835,1716438395158,154.93802479,0.0001,2]
[327759836,1716438415162,154.93802479,0.0001,2]
[327759837,1716438435166,154.93802479,0.0001,2]
[327759838,1716438445179,-154.93802479,0.000165,2]
[327759839,1716438445201,-156.4986066,0.00019786,2]
[327759840,1716438445222,-353.51424497,0.00019787,2]
[327759841,1716438445243,-250.566629,0.0001986,2]
[327759842,1716438445264,-11211.57611396,0.00019882,2]
[327759843,1716438453170,192.45283486,0.0001,2]
[327759862,1716438547128,-9403.91722042,0.00019879,2]
[327759863,1716438547148,-214.99756086,0.0001988,2]
[327759864,1716438547168,-59429.50731458,0.0001988,2]
[327759865,1716438547188,-154.93802479,0.00019881,2]
[327759866,1716438547208,-4462.05041434,0.00019887,11]
[327759867,1716438547228,-2130.27344501,0.00019888,2]
[327759869,1716438556102,-17989.99684348,0.00019888,2]
[327759871,1716438568225,-32966.25396953,0.00019878,2]
[327759872,1716438568246,-4779.72971151,0.00019888,2]
[327759873,1716438568266,-254.10507917,0.00020913,2]
[327759874,1716438568290,-500.0,0.00020913,2]
[327759875,1716438568314,-190.56472282,0.00020913,2]
[327759876,1716438568335,-500.0,0.00020913,2]
[327759877,1716438568362,-500.0,0.00020913,2]
[327759878,1716438568387,-500.0,0.00020913,2]
[327759879,1716438568411,-500.0,0.00020913,2]
[327759880,1716438568436,-500.0,0.00020913,2]
[327759881,1716438568458,-500.0,0.00020913,2]
[327759882,1716438568480,-500.0,0.00020913,2]
[327759883,1716438568512,-500.0,0.00020913,2]
[327759884,1716438568541,-500.0,0.00020913,2]
[327759885,1716438568568,-603.67111686,0.00020913,2]
[327759886,1716438568597,-500.0,0.00020913,2]
[327759887,1716438568625,-500.0,0.00020913,2]
[327759888,1716438568645,-26757.46607382,0.00020913,2]
[327759889,1716438568666,-2067.06566948,0.00022738,2]
[327759890,1716438568686,-1143.36406491,0.00023285,2]
[327759891,1716438568706,-399.717632,0.00024384,2]
[327759892,1716438568728,-1249.50842235,0.00024402,2]
[327759893,1716438568751,-363.65821844,0.00024448,2]
[327759894,1716438568772,-155.04496304,0.00024722,2]
[327759895,1716438568794,-1855.06596676,0.0002499,7]
[327759896,1716438568815,-2949.99899625,0.00024997,2]
[327759897,1716438568835,-302.38073973,0.00024997,2]
[327759898,1716438568854,-2105.38655213,0.00024997,2]
[327759899,1716438568874,-550.9904196,0.00024997,2]
[327759900,1716438568894,-162.560857,0.00024997,2]
[327759901,1716438568915,-155.97041176,0.00024997,2]
[327759902,1716438568934,-2635.84610155,0.00024998,2]
[327759903,1716438568954,-4845.6,0.0002599,3]
[327759904,1716438568974,-6897.24760705,0.00026,2]
[327759905,1716438568995,-2000.0,0.000264,2]
[327759906,1716438569015,-9403.91722042,0.00026489,2]
[327759907,1716438569035,-5814.72,0.0002649,3]
[327759908,1716438569055,-7280.35531015,0.00026498,2]
[327759909,1716438569074,-339226.24183303,0.000265,2]
[327759911,1716438580639,2067.06566948,0.00021,2]
[327759912,1716438585413,713.35318318,0.00018,2]
[327759937,1716438632408,-6034.44397705,0.00026,2]
[327759938,1716438632418,-2067.06566948,0.00026499,2]
[327759939,1716438632427,-6257.46310452,0.000265,11]
[327759940,1716438632436,-76847.552161,0.000265,2]
[327759941,1716438632490,-101.566594,0.000265,2]
[327759944,1716438638420,-500.0,0.00026499,2]
[327759945,1716438638430,-500.0,0.00026499,2]
[327759946,1716438638439,-500.0,0.00026499,2]
[327759947,1716438638448,-198.91384372,0.00026499,2]
[327759948,1716438638491,-132.18749134,0.00026499,2]
[327759950,1716438638502,-1007.47997875,0.000265,2]
[327759954,1716438641345,-8759.72655987,0.000265,2]
[327759956,1716438643692,-7848.81296091,0.000265,2]
[327759958,1716438645152,2067.06566948,0.00021,2]
[327759959,1716438646543,-365.63914904,0.000265,2]
[327759965,1716438650660,154.93802479,0.00020913,2]
[327759966,1716438663149,2067.06566948,0.00021,2]
[327759967,1716438683655,1995.78469541,0.00021,2]
[327759968,1716438684296,154.93802479,0.00020913,2]
[327759969,1716438688885,281.33101558,0.00020913,2]
[327759970,1716438689326,261.10136921,0.00020913,2]
[327759971,1716438689453,1338.92794901,0.00020913,2]
[327759972,1716438689908,281.53989452,0.00020913,2]
[327759973,1716438690995,277.30511955,0.00020913,2]
[327759974,1716438694190,714.95971981,0.00020913,2]
[327759975,1716438694785,652.76515297,0.00020913,2]
[327759976,1716438710244,154.97250728,0.00020913,2]
[327759977,1716438713503,187.27867909,0.00024,2]
[327759980,1716438729508,187.27867909,0.00024,2]
[327759988,1716439352348,273.37336231,9.9e-05,2]
[327759991,1716439366063,273.37336231,9.9e-05,2]
[327759993,1716439375296,273.37336231,9.9e-05,2]
[327759997,1716439384322,273.37336231,9.9e-05,2]
[327759999,1716439392678,273.37336231,9.9e-05,2]
[327760000,1716439401314,273.37336231,9.9e-05,2]
[327760001,1716439410207,273.37336231,9.9e-05,2]
[327760002,1716439419401,273.37336231,9.9e-05,2]
[327760003,1716439427699,273.37336231,9.9e-05,2]
[327760004,1716439436303,273.37336231,9.9e-05,2]
[327760005,1716439444989,273.37336231,9.9e-05,2]
[327760006,1716439454647,273.37336231,9.9e-05,2]
[327760007,1716439463912,273.37336231,9.9e-05,2]
[327760008,1716439473660,273.37336231,9.9e-05,2]
[327760009,1716439482720,273.37336231,9.9e-05,2]
[327760011,1716439491212,273.37336231,9.9e-05,2]
[327760012,1716439499431,273.37336231,9.9e-05,2]
[327760013,1716439507716,273.37336231,9.9e-05,2]
[327760014,1716439516316,273.37336231,9.9e-05,2]
[327760016,1716439524586,273.37336231,9.9e-05,2]
[327760017,1716439533215,273.37336231,9.9e-05,2]
[327760018,1716439537209,-330.42851345,0.000176,2]
[327760020,1716439542680,273.37336231,9.9e-05,2]
[327760022,1716439551231,273.37336231,9.9e-05,2]
[327760023,1716439559548,273.37336231,9.9e-05,2]
[327760024,1716439568658,273.37336231,9.9e-05,2]
[327760025,1716439577271,273.37336231,9.9e-05,2]
[327760026,1716439586359,273.37336231,9.9e-05,2]
[327760027,1716439594706,273.37336231,9.9e-05,2]
[327760028,1716439603426,273.37336231,9.9e-05,2]
[327760029,1716439611758,273.37336231,9.9e-05,2]
[327760030,1716439620415,273.37336231,9.9e-05,2]
[327760031,1716439628757,273.37336231,9.9e-05,2]
[327760032,1716439637326,273.37336231,9.9e-05,2]
[327760034,1716439638100,-1639.43390128,0.000176,2]
[327760035,1716439638123,-541.68147696,0.00019455,2]
[327760036,1716439638144,-658.45147064,0.00019554,2]
[327760040,1716439640144,-58771.05584394,0.00019554,2]
[327760041,1716439640166,-12780.73482977,0.00019555,2]
[327760042,1716439641106,-12119.26517023,0.00019555,2]
[327760043,1716439641131,-168.148609,0.00019638,2]
[327760044,1716439641155,-1596.57053215,0.00019687,2]
[327760045,1716439641179,-235.4,0.00020896,3]
[327760046,1716439641204,-151.0,0.00020896,3]
[327760047,1716439641230,-3862.62541816,0.0002091,11]
[327760048,1716439641253,-26757.46607382,0.00020911,2]
[327760049,1716439641277,-9403.91722042,0.00020912,2]
[327760050,1716439641300,-214.99756086,0.00020912,2]
[327760051,1716439641323,-254.10507917,0.00020913,2]
[327760052,1716439641349,-500.0,0.00020913,2]
[327760053,1716439641372,-190.56472282,0.00020913,2]
[327760054,1716439641397,-500.0,0.00020913,2]
[327760055,1716439641422,-500.0,0.00020913,2]
[327760056,1716439641445,-500.0,0.00020913,2]
[327760057,1716439641469,-500.0,0.00020913,2]
[327760058,1716439641492,-500.0,0.00020913,2]
[327760059,1716439641515,-500.0,0.00020913,2]
[327760060,1716439641539,-500.0,0.00020913,2]
[327760061,1716439641562,-500.0,0.00020913,2]
[327760062,1716439641584,-500.0,0.00020913,2]
[327760063,1716439641606,-646.34042974,0.00020913,2]
[327760064,1716439641629,-500.0,0.00020913,2]
[327760065,1716439641655,-500.0,0.00020913,2]
[327760066,1716439641677,-500.0,0.00020913,2]
[327760067,1716439641699,-224.10353877,0.00020913,2]
[327760068,1716439641720,-541.68147695,0.00021366,2]
[327760069,1716439641742,-235.4,0.00021905,3]
[327760070,1716439641762,-166.666666,0.00021918,2]
[327760071,1716439641782,-621.92558089,0.00022535,2]
[327760072,1716439641803,-235.4,0.00022915,3]
[327760073,1716439641823,-166.666666,0.000232,2]
[327760074,1716439641843,-541.68147695,0.00023278,2]
[327760075,1716439641863,-620.09627904,0.00023662,2]
[327760076,1716439641884,-235.4,0.00023924,5]
[327760077,1716439641904,-187.27867909,0.00024,2]
[327760078,1716439641924,-168.177387,0.00024384,2]
[327760079,1716439641944,-411.3251892,0.000244,2]
[327760080,1716439641964,-166.666666,0.00024482,2]
[327760081,1716439641984,-380.0,0.00024658,2]
[327760082,1716439642006,-620.00481395,0.00024845,2]
[327760083,1716439642029,-150.93962415,0.00024905,4]
[327760084,1716439642050,-235.4,0.00024934,5]
[327760085,1716439642070,-190.56382775,0.00025,2]
[327760086,1716439642091,-400.96297874,0.00025,2]
[327760087,1716439642112,-447.68042901,0.00025189,2]
[327760088,1716439646080,273.37336231,9.9e-05,2]
[327760089,1716439647146,-189.88630392,0.000189,2]
[327760090,1716439654611,273.37336231,9.9e-05,2]
[327760091,1716439663384,273.37336231,9.9e-05,2]
[327760092,1716439672387,273.37336231,9.9e-05,2]
[327760093,1716439681577,273.37336231,9.9e-05,2]
[327760095,1716439690331,273.37336231,9.9e-05,2]
[327760096,1716439698599,273.37336231,9.9e-05,2]
[327760098,1716439707170,273.37336231,9.9e-05,2]
[327760100,1716439715430,273.37336231,9.9e-05,2]
[327760102,1716439725483,273.37336231,9.9e-05,2]
[327760112,1716439734045,273.37336231,9.9e-05,2]
[327760114,1716439742646,273.37336231,9.9e-05,2]
[327760115,1716439751461,273.37336231,9.9e-05,2]
[327760118,1716439760833,273.37336231,9.9e-05,2]
[327760119,1716439764097,-84.33048888,0.000189,2]
[327760120,1716439764119,-32966.25396953,0.00020913,2]
[327760121,1716439764142,-789.64865511,0.000238,2]
[327760122,1716439764170,-274.2167928,0.000239,2]
[327760123,1716439764192,-223.84145135,0.00024,2]
[327760124,1716439769819,273.37336231,9.9e-05,2]
[327760125,1716439779430,273.37336231,9.9e-05,2]
[327760126,1716439788755,273.37336231,9.9e-05,2]
[327760127,1716439797499,273.37336231,9.9e-05,2]
[327760128,1716439805736,273.37336231,9.9e-05,2]
[327760131,1716439814782,273.37336231,9.9e-05,2]
[327760132,1716439823085,273.37336231,9.9e-05,2]
[327760133,1716439827346,151.0,0.00020821,3]
[327760134,1716439827383,151.0,0.00021837,3]
[327760135,1716439827430,151.0,0.00022854,3]
[327760136,1716439827506,151.0,0.0002387,5]
[327760137,1716439828928,455.0,0.00020548,10]
[327760138,1716439831838,273.37336231,9.9e-05,2]
[327760186,1716439832775,-430.184966,0.00024384,2]
[327760187,1716439832788,-151.0,0.00024886,5]
[327760189,1716439832799,-400.54018586,0.00025,2]
[327760190,1716439832808,-150.93962415,0.00025413,2]
[327760192,1716439832818,-789.64865505,0.00025591,2]
[327760193,1716439832826,-151.0,0.00025902,5]
[327760194,1716439832836,-707.7255205,0.00026499,12]
[327760195,1716439832845,-4567.16976475,0.000265,2]
[327760203,1716439840012,273.37336231,9.9e-05,2]
[327760207,1716439842261,-13653.21531161,0.000265,2]
[327760253,1716439849326,273.37336231,9.9e-05,2]
[327760254,1716439857607,273.37336231,9.9e-05,2]
[327760255,1716439866565,273.37336231,9.9e-05,2]
[327760256,1716439875605,273.37336231,9.9e-05,2]
[327760257,1716439880797,156.4485373,0.00020913,2]
[327760258,1716439884443,273.37336231,9.9e-05,2]
[327760259,1716439891819,162.560857,0.00020913,2]
[327760260,1716439893668,273.37336231,9.9e-05,2]
[327760261,1716439902769,273.37336231,9.9e-05,2]
[327760263,1716439912540,273.37336231,9.9e-05,2]
[327760264,1716439920832,273.37336231,9.9e-05,2]
[327760266,1716439929856,273.37336231,9.9e-05,2]
[327760267,1716439938666,273.37336231,9.9e-05,2]
[327760268,1716439947685,273.37336231,9.9e-05,2]
[327760269,1716439956553,273.37336231,9.9e-05,2]
[327760270,1716439965562,273.37336231,9.9e-05,2]
[327760271,1716439973912,273.37336231,9.9e-05,2]
[327760273,1716439982476,273.37336231,9.9e-05,2]
[327760274,1716439990800,273.37336231,9.9e-05,2]
[327760278,1716439999952,273.37336231,9.9e-05,2]
[327760283,1716440008342,273.37336231,9.9e-05,2]
[327760284,1716440016908,273.37336231,9.9e-05,2]
[327760285,1716440025697,273.37336231,9.9e-05,2]
[327760286,1716440030355,917.33940487,9.9e-05,2]
[327760287,1716440034361,273.37336231,9.9e-05,2]
[327760289,1716440043559,273.37336231,9.9e-05,2]
[327760291,1716440052129,273.37336231,9.9e-05,2]
[327760292,1716440061180,273.37336231,9.9e-05,2]
[327760293,1716440070229,273.37336231,9.9e-05,2]
[327760294,1716440071449,19256.26797269,9.9e-05,2]
[327760295,1716440079042,273.37336231,9.9e-05,2]
[327760296,1716440087393,3597.098246,9.9e-05,2]
[327760297,1716440087527,273.37336231,9.9e-05,2]
[327760298,1716440096079,273.37336231,9.9e-05,2]
[327760299,1716440104970,273.37336231,9.9e-05,2]
[327760300,1716440113429,273.37336231,9.9e-05,2]
[327760301,1716440122445,273.37336231,9.9e-05,2]
[327760302,1716440131417,273.37336231,9.9e-05,2]
[327760303,1716440140163,273.37336231,9.9e-05,2]
[327760304,1716440148764,273.37336231,9.9e-05,2]
[327760305,1716440158674,273.37336231,9.9e-05,2]
[327760306,1716440167282,273.37336231,9.9e-05,2]
[327760307,1716440176879,273.37336231,9.9e-05,2]
[327760308,1716440185097,273.37336231,9.9e-05,2]
[327760309,1716440194307,273.37336231,9.9e-05,2]
[327760310,1716440202704,273.37336231,9.9e-05,2]
[327760311,1716440212061,273.37336231,9.9e-05,2]
[327760312,1716440220568,273.37336231,9.9e-05,2]
[327760313,1716440228568,273.37336231,9.9e-05,2]
[327760314,1716440237178,273.37336231,9.9e-05,2]
[327760316,1716440245499,273.37336231,9.9e-05,2]
[327760317,1716440254106,273.37336231,9.9e-05,2]
[327760318,1716440263326,273.37336231,9.9e-05,2]
[327760319,1716440271461,273.37336231,9.9e-05,2]
[327760321,1716440279819,273.37336231,9.9e-05,2]
[327760322,1716440288470,273.37336231,9.9e-05,2]
[327760323,1716440297292,273.37336231,9.9e-05,2]
[327760324,1716440306402,273.37336231,9.9e-05,2]
[327760325,1716440314688,273.37336231,9.9e-05,2]
[327760326,1716440323409,273.37336231,9.9e-05,2]
[327760327,1716440331732,273.37336231,9.9e-05,2]
[327760328,1716440340480,273.37336231,9.9e-05,2]
[327760329,1716440349267,273.37336231,9.9e-05,2]
[327760330,1716440358451,273.37336231,9.9e-05,2]
[327760331,1716440367306,273.37336231,9.9e-05,2]
[327760333,1716440376390,273.37336231,9.9e-05,2]
[327760334,1716440384670,273.37336231,9.9e-05,2]
[327760335,1716440393374,273.37336231,9.9e-05,2]
[327760337,1716440402279,273.37336231,9.9e-05,2]
[327760338,1716440411626,273.37336231,9.9e-05,2]
[327760339,1716440420226,273.37336231,9.9e-05,2]
[327760340,1716440426841,550.9904196,9.999e-05,2]
[327760341,1716440429333,273.37336231,9.9e-05,2]
[327760342,1716440438309,273.37336231,9.9e-05,2]
[327760343,1716440447290,273.37336231,9.9e-05,2]
[327760344,1716440455541,273.37336231,9.9e-05,2]
[327760345,1716440464203,273.37336231,9.9e-05,2]
[327760346,1716440473032,273.37336231,9.9e-05,2]
[327760347,1716440483233,273.37336231,9.9e-05,2]
[327760348,1716440491641,273.37336231,9.9e-05,2]
[327760350,1716440500388,273.37336231,9.9e-05,2]
[327760354,1716440508942,273.37336231,9.9e-05,2]
[327760355,1716440517559,273.37336231,9.9e-05,2]
[327760356,1716440526501,273.37336231,9.9e-05,2]
[327760357,1716440530860,-942.90397425,0.0002033,2]
[327760358,1716440530887,-156.4485373,0.0002033,2]
[327760359,1716440530912,-456.1683123,0.00020331,2]
[327760360,1716440530939,-24900.0,0.00020332,2]
[327760361,1716440530963,-151.0,0.00020641,3]
[327760362,1716440531115,-868.4978586,0.00020912,2]
[327760363,1716440531139,-156.76904342,0.00020912,2]
[327760364,1716440531161,-1933.74004357,0.00020913,2]
[327760365,1716440531184,-151.0,0.00021674,3]
[327760366,1716440531206,-150.0,0.0002177,2]
[327760367,1716440531228,-166.6666663,0.00021918,2]
[327760368,1716440531250,-155.0,0.00022,2]
[327760369,1716440531273,-151.0,0.00022706,3]
[327760370,1716440531299,-151.0,0.00023739,3]
[327760371,1716440531321,-151.0,0.00024772,5]
[327760372,1716440531344,-430.3618645,0.00025,2]
[327760373,1716440531366,-151.0,0.00025804,5]
[327760374,1716440531389,-5128.20263499,0.000265,2]
[327760375,1716440531411,-456.49011547,0.000265,2]
[327760376,1716440531435,-151.0,0.00026837,5]
[327760377,1716440531458,-656.58627751,0.00026857,2]
[327760378,1716440531481,-161.21904892,0.000269,2]
[327760379,1716440531504,-159.70333977,0.00026999,2]
[327760380,1716440531528,-415.03829599,0.00026999,2]
[327760381,1716440531555,-500.0,0.00026999,2]
[327760382,1716440531578,-165.80105957,0.00026999,2]
[327760383,1716440531601,-200.02876224,0.00026999,2]
[327760384,1716440531625,-478.45001488,0.00026999,2]
[327760385,1716440531652,-304.92415042,0.00026999,2]
[327760386,1716440724829,273.37336231,9.9e-05,2]
[327760387,1716440734121,273.37336231,9.9e-05,2]
[327760388,1716440743429,273.37336231,9.9e-05,2]
[327760389,1716440745319,285.83068385,0.00015,2]
[327760390,1716440751217,273.37336231,9.9e-05,2]
[327760391,1716440758173,-154.90705577,0.00020624,2]
[327760392,1716440758193,-151.0,0.00020625,3]
[327760393,1716440758212,-262.74784223,0.00020912,2]
[327760394,1716440760562,273.37336231,9.9e-05,2]
[327760397,1716440765283,384.63769401,0.00015,2]
[327760398,1716440769381,273.37336231,9.9e-05,2]
[327760399,1716440775750,155.7544135,0.000136,2]
[327760401,1716440777939,273.37336231,9.9e-05,2]
[327760402,1716440787228,273.37336231,9.9e-05,2]
[327760403,1716440796250,273.37336231,9.9e-05,2]
[327760404,1716440797691,157.08886238,0.000136,2]
[327760407,1716440804532,273.37336231,9.9e-05,2]
[327760408,1716440814600,273.37336231,9.9e-05,2]
[327760409,1716440823410,273.37336231,9.9e-05,2]
[327760410,1716440832025,273.37336231,9.9e-05,2]
[327760411,1716440833116,-605.75001637,0.00020912,2]
[327760413,1716440833135,-1933.74004357,0.00020912,2]
[327760415,1716440833155,-456.1683123,0.00020912,2]
[327760417,1716440833174,-942.90397425,0.00020912,2]
[327760419,1716440833193,-156.4485373,0.00020912,2]
[327760421,1716440833213,-156.90229813,0.00020912,2]
[327760423,1716440833234,-1717.62384614,0.00020913,2]
[327760425,1716440833255,-159.70333977,0.00022,2]
[327760427,1716440833276,-408.675717,0.00024384,2]
[327760429,1716440833296,-430.3618645,0.00025,2]
[327760431,1716440833316,-2990.94079435,0.00026,2]
[327760432,1716440833336,-281.0,0.000269,2]
[327760433,1716440833356,-155.04031048,0.00026998,2]
[327760434,1716440833376,-155.04031048,0.00026999,2]
[327760435,1716440833397,-456.49011547,0.00026999,2]
[327760436,1716440833417,-154.93147087,0.00026999,2]
[327760437,1716440833439,-155.0,0.00026999,2]
[327760438,1716440833459,-3978.76019136,0.00026999,2]
[327760439,1716440833480,-36110.75883067,0.00027,2]
[327760440,1716440833502,-161.21904888,0.0002729,2]
[327760441,1716440833522,-1137.22291442,0.0002739,2]
[327760442,1716440833543,-1000.0,0.00027397,5]
[327760443,1716440833564,-154.99780669,0.000274,2]
[327760444,1716440833583,-443.0,0.000275,2]
[327760445,1716440833603,-192.4664948,0.00027945,2]
[327760446,1716440833623,-291.561811,0.00027945,2]
[327760447,1716440833643,-291.561811,0.00027945,2]
[327760448,1716440833663,-291.561811,0.00027945,2]
[327760449,1716440833682,-291.561811,0.00027945,2]
[327760450,1716440833703,-291.561811,0.00027945,2]
[327760451,1716440833725,-293.9220197,0.00027945,2]
[327760452,1716440833747,-1000.0,0.00027999,6]
[327760453,1716440833769,-221.71239944,0.00028,2]
[327760454,1716440833792,-5550.77576118,0.00028,4]
[327760455,1716440833813,-161.21904888,0.0002816,2]
[327760456,1716440833832,-305.2,0.000284,2]
[327760457,1716440833851,-418.399999,0.000286,2]
[327760458,1716440833871,-11383.06095469,0.00028757,3]
[327760459,1716440839111,-6579.51904531,0.00028757,3]
[327760460,1716440839136,-1000.0,0.00028759,7]
[327760461,1716440839156,-21555.09,0.0002876,3]
[327760462,1716440839182,-275.0464017,0.00028767,2]
[327760463,1716440840906,273.37336231,9.9e-05,2]
[327760464,1716440849970,273.37336231,9.9e-05,2]
[327760465,1716440858804,273.37336231,9.9e-05,2]
[327760466,1716440867361,273.37336231,9.9e-05,2]
[327760467,1716440876636,273.37336231,9.9e-05,2]
[327760468,1716440885887,273.37336231,9.9e-05,2]
[327760469,1716440894237,273.37336231,9.9e-05,2]
[327760470,1716440903210,273.37336231,9.9e-05,2]
[327760471,1716440911674,273.37336231,9.9e-05,2]
[327760472,1716440920655,273.37336231,9.9e-05,2]
[327760476,1716440929456,273.37336231,9.9e-05,2]
[327760477,1716440938134,273.37336231,9.9e-05,2]
[327760479,1716440946916,273.37336231,9.9e-05,2]
[327760480,1716440955428,273.37336231,9.9e-05,2]
[327760481,1716440963137,-156.4485373,0.00020913,2]
[327760482,1716440963160,-3980.09499401,0.00021,2]
[327760483,1716440963296,-456.49011547,0.00025,2]
[327760484,1716440963328,-430.3618645,0.00025,2]
[327760485,1716440965240,273.37336231,9.9e-05,2]
[327760486,1716440969642,942.90397425,0.00020913,2]
[327760487,1716440974279,273.37336231,9.9e-05,2]
[327760488,1716440974588,430.3618645,0.00025,2]
[327760489,1716440976206,3711.70653738,0.00021,2]
[327760492,1716440983519,273.37336231,9.9e-05,2]
[327760493,1716440992132,273.37336231,9.9e-05,2]
[327760495,1716441000500,273.37336231,9.9e-05,2]
[327760499,1716441009178,273.37336231,9.9e-05,2]
[327760510,1716441018161,273.37336231,9.9e-05,2]
[327760516,1716441026502,151.0,0.00020592,3]
[327760517,1716441026684,273.37336231,9.9e-05,2]
[327760551,1716441035552,273.37336231,9.9e-05,2]
[327760559,1716441038084,-268.38845663,0.00021,2]
[327760560,1716441038094,-0.01521136,0.00021629,3]
[327760584,1716441042705,-150.98478864,0.00021629,3]
[327760586,1716441042715,-151.0,0.00022666,3]
[327760588,1716441042726,-151.0,0.00023703,3]
[327760591,1716441042735,-166.6666663,0.00023982,2]
[327760592,1716441042745,-151.0,0.0002474,5]
[327760593,1716441042755,-129.17050172,0.00025,2]
[327760594,1716441042779,-327.31961375,0.00025,2]
[327760596,1716441042788,-379.27227495,0.00025,2]
[327760597,1716441042797,-24900.0,0.0002576,2]
[327760598,1716441042806,-151.0,0.00025777,5]
[327760599,1716441042815,-150.0,0.0002666,2]
[327760600,1716441042824,-656.58627751,0.00026857,2]
[327760601,1716441042834,-1137.22291442,0.0002739,2]
[327760602,1716441042843,-221.71239944,0.00028,2]
[327760603,1716441042853,-418.399999,0.000286,2]
[327760604,1716441042863,-161.2190489,0.00028669,2]
[327760605,1716441042873,-3948.07332062,0.0002876,3]
[327760609,1716441045068,-622.93575481,0.0002876,3]
[327760610,1716441045084,-661.81006436,0.0002876,3]
[327760611,1716441045201,273.37336231,9.9e-05,2]
[327760618,1716441046123,-5603.34086021,0.0002876,3]
[327760619,1716441046133,-1000.0,0.00028769,8]
[327760620,1716441046143,-1000.0,0.00028769,9]
[327760621,1716441046155,-317.86544971,0.00028769,2]
[327760622,1716441046164,-444.65101991,0.00028769,2]
[327760623,1716441046173,-500.0,0.00028769,2]
[327760624,1716441046183,-500.0,0.00028769,2]
[327760625,1716441046192,-478.45001488,0.00028769,2]
[327760626,1716441046201,-500.0,0.00028769,2]
[327760627,1716441046211,-165.80105957,0.00028769,2]
[327760628,1716441046220,-200.02876224,0.00028769,2]
[327760629,1716441046229,-500.0,0.00028769,2]
[327760630,1716441046238,-500.0,0.00028769,2]